[Event "January 2 Early 2024"]
[Site "https://www.chess.com"]
[Date "2024.01.02"]
[Round "1"]
[White "Carlsen, Magnus"]
[Black "Santos Flores, Alberto"]
[Result "1-0"]
[Board "1"]
[TimeControl "180+1"]
[WhiteFideId "1503014"]
[BlackFideId "3601234"]
[WhiteElo "3366"]
[BlackElo "2532"]
[WhiteTeam "NOR"]
[BlackTeam "ECU"]
[WhiteClock "0:02:29"]
[BlackClock "0:00:00"]

1. e4 {[%clk 0:02:58]}  e6 {[%clk 0:02:45]} 2. b3 {[%clk 0:02:56]}  d5 {[%clk 0:02:45]} 3. Bb2 {[%clk 0:02:57]}  dxe4 {[%clk 0:02:45]} 4. Nc3 {[%clk 0:02:57]}  Nf6 {[%clk 0:02:45]} 5. g4 {[%clk 0:02:57]}  h6 {[%clk 0:02:37]} 6. Qe2 {[%clk 0:02:55]}  Bb4 {[%clk 0:02:36]} 7. O-O-O {[%clk 0:02:55]}  Qe7 {[%clk 0:02:36]} 8. Kb1 {[%clk 0:02:52]}  Ba3 {[%clk 0:02:19]} 9. Ba1 {[%clk 0:02:52]}  a5 {[%clk 0:02:18]} 10. Nxe4 {[%clk 0:02:51]}  Nxe4 {[%clk 0:02:16]} 11. Qxe4 {[%clk 0:02:51]}  a4 {[%clk 0:01:59]} 12. Bxg7 {[%clk 0:02:50]}  axb3 {[%clk 0:01:55]} 13. Bxh8 {[%clk 0:02:45]}  bxa2+ {[%clk 0:01:47]} 14. Ka1 {[%clk 0:02:45]}  Nc6 {[%clk 0:01:43]} 15. Bb5 {[%clk 0:02:43]}  Bd7 {[%clk 0:01:43]} 16. Nf3 {[%clk 0:02:43]}  Qc5 {[%clk 0:01:39]} 17. Qc4 {[%clk 0:02:38]}  Qxf2 {[%clk 0:01:37]} 18. Rhf1 {[%clk 0:02:37]}  Qg2 {[%clk 0:01:31]} 19. Ne5 {[%clk 0:02:31]}  Nxe5 {[%clk 0:00:24]} 20. Bxe5 {[%clk 0:02:32]}  c6 {[%clk 0:00:13]} 21. Qf4 {[%clk 0:02:31]}  O-O-O {[%clk 0:00:00]} 22. Qa4 {[%clk 0:02:29]} 1-0

[Event "January 2 Early 2024"]
[Site "https://www.chess.com"]
[Date "2024.01.02"]
[Round "1"]
[White "Rangel, Daniel"]
[Black "Nakamura, Hikaru"]
[Result "0-1"]
[Board "2"]
[TimeControl "180+1"]
[WhiteFideId "2124475"]
[BlackFideId "2016192"]
[WhiteElo "2531"]
[BlackElo "3238"]
[WhiteTeam "BRA"]
[BlackTeam "USA"]
[WhiteClock "0:00:00"]
[BlackClock "0:00:34"]

1. c4 {[%clk 0:03:00]}  g6 {[%clk 0:02:59]} 2. g3 {[%clk 0:03:00]}  Bg7 {[%clk 0:03:00]} 3. Bg2 {[%clk 0:03:00]}  d6 {[%clk 0:03:01]} 4. Nc3 {[%clk 0:03:00]}  Nc6 {[%clk 0:03:01]} 5. e4 {[%clk 0:02:56]}  Bd7 {[%clk 0:03:01]} 6. Nge2 {[%clk 0:02:56]}  Qc8 {[%clk 0:03:00]} 7. h4 {[%clk 0:02:51]}  Nf6 {[%clk 0:02:58]} 8. d4 {[%clk 0:02:50]}  e5 {[%clk 0:02:54]} 9. d5 {[%clk 0:02:49]}  Ne7 {[%clk 0:02:51]} 10. f3 {[%clk 0:02:49]}  c5 {[%clk 0:02:45]} 11. dxc6 {[%clk 0:02:41]}  Qxc6 {[%clk 0:02:44]} 12. b3 {[%clk 0:02:36]}  Be6 {[%clk 0:02:39]} 13. Be3 {[%clk 0:02:34]}  O-O {[%clk 0:02:37]} 14. Qd2 {[%clk 0:02:32]}  a6 {[%clk 0:02:36]} 15. g4 {[%clk 0:02:24]}  h5 {[%clk 0:02:35]} 16. Nd5 {[%clk 0:02:17]}  Rae8 {[%clk 0:02:11]} 17. Nxf6+ {[%clk 0:02:00]}  Bxf6 {[%clk 0:02:12]} 18. gxh5 {[%clk 0:02:01]}  gxh5 {[%clk 0:02:10]} 19. Bh6 {[%clk 0:01:58]}  Ng6 {[%clk 0:02:09]} 20. Bxf8 {[%clk 0:01:55]}  Kxf8 {[%clk 0:02:05]} 21. Qh6+ {[%clk 0:01:47]}  Ke7 {[%clk 0:02:05]} 22. Qe3 {[%clk 0:01:28]}  Nf4 {[%clk 0:01:44]} 23. Bf1 {[%clk 0:01:05]}  Qc7 {[%clk 0:01:43]} 24. Rd1 {[%clk 0:00:39]}  Qa5+ {[%clk 0:01:39]} 25. Nc3 {[%clk 0:00:35]}  b5 {[%clk 0:01:30]} 26. Kf2 {[%clk 0:00:24]}  Rc8 {[%clk 0:01:31]} 27. Qd2 {[%clk 0:00:10]}  Qb6+ {[%clk 0:01:27]} 28. Qe3 {[%clk 0:00:10]}  Qc7 {[%clk 0:01:18]} 29. Nd5+ {[%clk 0:00:08]}  Bxd5 {[%clk 0:01:17]} 30. cxd5 {[%clk 0:00:09]}  Qa5 {[%clk 0:01:13]} 31. Rd2 {[%clk 0:00:06]}  Rc3 {[%clk 0:01:12]} 32. Qa7+ {[%clk 0:00:04]}  Kf8 {[%clk 0:01:13]} 33. Qb8+ {[%clk 0:00:04]}  Ke7 {[%clk 0:01:00]} 34. Qa7+ {[%clk 0:00:04]}  Rc7 {[%clk 0:01:00]} 35. Qe3 {[%clk 0:00:04]}  Kf8 {[%clk 0:00:43]} 36. Bh3 {[%clk 0:00:03]}  Bxh4+ {[%clk 0:00:33]} 37. Kg1 {[%clk 0:00:00]}  Bg3 {[%clk 0:00:34]} 0-1

[Event "January 2 Early 2024"]
[Site "https://www.chess.com"]
[Date "2024.01.02"]
[Round "1"]
[White "Nihal Sarin"]
[Black "Kambrath, Yannick"]
[Result "1-0"]
[Board "3"]
[TimeControl "180+1"]
[WhiteFideId "25092340"]
[BlackFideId "20632525"]
[WhiteElo "3203"]
[BlackElo "2531"]
[WhiteTeam "IND"]
[BlackTeam "FRA"]
[WhiteClock "0:02:18"]
[BlackClock "0:00:06"]

1. e4 {[%clk 0:03:00]}  e5 {[%clk 0:02:59]} 2. Nf3 {[%clk 0:03:00]}  Nc6 {[%clk 0:02:59]} 3. Bb5 {[%clk 0:03:01]}  a6 {[%clk 0:02:58]} 4. Ba4 {[%clk 0:03:00]}  Nf6 {[%clk 0:02:58]} 5. O-O {[%clk 0:03:00]}  Be7 {[%clk 0:02:58]} 6. Re1 {[%clk 0:03:00]}  b5 {[%clk 0:02:57]} 7. Bb3 {[%clk 0:03:00]}  O-O {[%clk 0:02:58]} 8. a4 {[%clk 0:02:59]}  Bb7 {[%clk 0:02:52]} 9. d3 {[%clk 0:02:58]}  d6 {[%clk 0:02:47]} 10. Nbd2 {[%clk 0:02:56]}  h6 {[%clk 0:02:43]} 11. Nf1 {[%clk 0:02:53]}  Re8 {[%clk 0:02:37]} 12. Ng3 {[%clk 0:02:53]}  Bf8 {[%clk 0:02:37]} 13. c3 {[%clk 0:02:52]}  g6 {[%clk 0:02:31]} 14. Nh4 {[%clk 0:02:47]}  d5 {[%clk 0:01:48]} 15. exd5 {[%clk 0:02:36]}  Nxd5 {[%clk 0:01:47]} 16. Qg4 {[%clk 0:02:37]}  Bc8 {[%clk 0:01:37]} 17. Qf3 {[%clk 0:02:26]}  Be6 {[%clk 0:01:13]} 18. axb5 {[%clk 0:02:25]}  Qxh4 {[%clk 0:00:19]} 19. Bxd5 {[%clk 0:02:17]}  Bxd5 {[%clk 0:00:15]} 20. Qxd5 {[%clk 0:02:18]}  Ne7 {[%clk 0:00:12]} 21. Qf3 {[%clk 0:02:18]}  axb5 {[%clk 0:00:06]} 22. Rxa8 {[%clk 0:02:18]} 1-0

[Event "January 2 Early 2024"]
[Site "https://www.chess.com"]
[Date "2024.01.02"]
[Round "1"]
[White "Novikov, Evgenij"]
[Black "Vachier-Lagrave, Maxime"]
[Result "0-1"]
[Board "4"]
[TimeControl "180+1"]
[WhiteFideId "4125380"]
[BlackFideId "623539"]
[WhiteElo "2530"]
[BlackElo "3187"]
[WhiteTeam "RUS"]
[BlackTeam "FRA"]
[WhiteClock "0:00:06"]
[BlackClock "0:02:18"]

1. d4 {[%clk 0:03:00]}  Nf6 {[%clk 0:02:59]} 2. c4 {[%clk 0:02:58]}  e6 {[%clk 0:02:59]} 3. Nc3 {[%clk 0:02:56]}  d5 {[%clk 0:02:59]} 4. cxd5 {[%clk 0:02:56]}  exd5 {[%clk 0:02:58]} 5. Bg5 {[%clk 0:02:55]}  c6 {[%clk 0:02:59]} 6. e3 {[%clk 0:02:55]}  Be7 {[%clk 0:03:00]} 7. Bd3 {[%clk 0:02:55]}  h6 {[%clk 0:02:58]} 8. Bh4 {[%clk 0:02:54]}  O-O {[%clk 0:02:59]} 9. Nge2 {[%clk 0:02:51]}  Ne8 {[%clk 0:02:59]} 10. Bg3 {[%clk 0:02:45]}  Nd6 {[%clk 0:02:58]} 11. Qc2 {[%clk 0:02:44]}  Re8 {[%clk 0:02:55]} 12. O-O-O {[%clk 0:02:39]}  a5 {[%clk 0:02:53]} 13. e4 {[%clk 0:02:21]}  dxe4 {[%clk 0:02:48]} 14. Nxe4 {[%clk 0:02:22]}  Nxe4 {[%clk 0:02:43]} 15. Bxe4 {[%clk 0:02:22]}  Be6 {[%clk 0:02:43]} 16. Kb1 {[%clk 0:02:16]}  Na6 {[%clk 0:02:40]} 17. a3 {[%clk 0:01:42]}  Nb4 {[%clk 0:02:40]} 18. axb4 {[%clk 0:01:34]}  axb4 {[%clk 0:02:40]} 19. d5 {[%clk 0:00:54]}  Qa5 {[%clk 0:02:40]} 20. Qb3 {[%clk 0:00:44]}  cxd5 {[%clk 0:02:40]} 21. Rxd5 {[%clk 0:00:32]}  Qa1+ {[%clk 0:02:38]} 22. Kc2 {[%clk 0:00:32]}  Rac8+ {[%clk 0:02:36]} 23. Kd2 {[%clk 0:00:30]}  Qxh1 {[%clk 0:02:36]} 24. Nf4 {[%clk 0:00:25]}  Qc1+ {[%clk 0:02:34]} 25. Ke2 {[%clk 0:00:24]}  Bxd5 {[%clk 0:02:33]} 26. Nxd5 {[%clk 0:00:20]}  Bg5 {[%clk 0:02:31]} 27. Kf3 {[%clk 0:00:19]}  Rxe4 {[%clk 0:02:30]} 28. Kxe4 {[%clk 0:00:17]}  Re8+ {[%clk 0:02:28]} 29. Kd4 {[%clk 0:00:16]}  Qd2+ {[%clk 0:02:27]} 30. Kc4 {[%clk 0:00:13]}  Rd8 {[%clk 0:02:24]} 31. Ne3 {[%clk 0:00:08]}  Qd4+ {[%clk 0:02:17]} 32. Kb5 {[%clk 0:00:07]}  Bxe3 {[%clk 0:02:16]} 33. fxe3 {[%clk 0:00:07]}  Rd5+ {[%clk 0:02:16]} 34. Ka4 {[%clk 0:00:06]}  Qa7+ {[%clk 0:02:16]} 35. Kxb4 {[%clk 0:00:06]}  Qc5+ {[%clk 0:02:17]} 36. Ka4 {[%clk 0:00:06]}  Qa5# {[%clk 0:02:18]} 0-1

[Event "January 2 Early 2024"]
[Site "https://www.chess.com"]
[Date "2024.01.02"]
[Round "1"]
[White "Davidson, Kevin"]
[Black "Nepomniachtchi, Ian"]
[Result "0-1"]
[Board "6"]
[TimeControl "180+1"]
[WhiteFideId "2056810"]
[BlackFideId "4168119"]
[WhiteElo "2529"]
[BlackElo "3124"]
[WhiteTeam "USA"]
[BlackTeam "RUS"]
[WhiteClock "0:00:08"]
[BlackClock "0:01:10"]

1. e4 {[%clk 0:02:56]}  c5 {[%clk 0:02:58]} 2. Nf3 {[%clk 0:02:56]}  d6 {[%clk 0:02:59]} 3. d4 {[%clk 0:02:55]}  cxd4 {[%clk 0:03:00]} 4. Nxd4 {[%clk 0:02:55]}  Nf6 {[%clk 0:03:01]} 5. Nc3 {[%clk 0:02:55]}  a6 {[%clk 0:03:02]} 6. h3 {[%clk 0:02:54]}  e5 {[%clk 0:03:01]} 7. Nde2 {[%clk 0:02:53]}  h5 {[%clk 0:03:00]} 8. Bg5 {[%clk 0:02:52]}  Be7 {[%clk 0:02:58]} 9. Bxf6 {[%clk 0:02:52]}  Bxf6 {[%clk 0:02:58]} 10. Nd5 {[%clk 0:02:52]}  Bg5 {[%clk 0:02:56]} 11. Nec3 {[%clk 0:02:52]}  Be6 {[%clk 0:02:55]} 12. Bc4 {[%clk 0:02:52]}  Nd7 {[%clk 0:02:54]} 13. O-O {[%clk 0:02:49]}  Rc8 {[%clk 0:02:54]} 14. Bb3 {[%clk 0:02:49]}  Nc5 {[%clk 0:02:54]} 15. Qe2 {[%clk 0:02:42]}  g6 {[%clk 0:02:54]} 16. Rad1 {[%clk 0:02:34]}  O-O {[%clk 0:02:53]} 17. f4 {[%clk 0:02:26]}  exf4 {[%clk 0:02:48]} 18. Nxf4 {[%clk 0:02:26]}  Bxf4 {[%clk 0:02:43]} 19. Rxf4 {[%clk 0:02:24]}  Qg5 {[%clk 0:02:43]} 20. Rf3 {[%clk 0:02:14]}  Qe5 {[%clk 0:02:32]} 21. Bd5 {[%clk 0:01:21]}  b5 {[%clk 0:02:30]} 22. b4 {[%clk 0:01:10]}  Nd7 {[%clk 0:02:25]} 23. Qd2 {[%clk 0:01:00]}  Bxd5 {[%clk 0:01:28]} 24. Nxd5 {[%clk 0:00:57]}  Kg7 {[%clk 0:01:25]} 25. Qd3 {[%clk 0:00:32]}  Rc4 {[%clk 0:01:22]} 26. a4 {[%clk 0:00:26]}  Rxe4 {[%clk 0:01:15]} 27. axb5 {[%clk 0:00:24]}  axb5 {[%clk 0:01:16]} 28. Qxb5 {[%clk 0:00:21]}  Rd4 {[%clk 0:01:10]} 29. Rxd4 {[%clk 0:00:16]}  Qxd4+ {[%clk 0:01:11]} 30. Kh2 {[%clk 0:00:14]}  Ne5 {[%clk 0:01:12]} 31. Rf1 {[%clk 0:00:10]}  Nc4 {[%clk 0:01:02]} 32. c3 {[%clk 0:00:09]}  Qe5+ {[%clk 0:01:02]} 33. Kh1 {[%clk 0:00:07]}  Ne3 {[%clk 0:01:00]} 34. Re1 {[%clk 0:00:04]}  Qxd5 {[%clk 0:01:00]} 35. Qxd5 {[%clk 0:00:02]}  Nxd5 {[%clk 0:01:01]} 36. Rd1 {[%clk 0:00:02]}  Nxc3 {[%clk 0:01:01]} 37. Rxd6 {[%clk 0:00:03]}  Rb8 {[%clk 0:01:02]} 38. Rd4 {[%clk 0:00:02]}  Na2 {[%clk 0:01:02]} 39. g4 {[%clk 0:00:01]}  hxg4 {[%clk 0:01:01]} 40. hxg4 {[%clk 0:00:02]}  Rxb4 {[%clk 0:01:02]} 41. Rxb4 {[%clk 0:00:01]}  Nxb4 {[%clk 0:01:03]} 42. Kg2 {[%clk 0:00:02]}  Kf6 {[%clk 0:01:03]} 43. Kf3 {[%clk 0:00:02]}  Kg5 {[%clk 0:01:04]} 44. Kg3 {[%clk 0:00:03]}  Nd5 {[%clk 0:01:04]} 45. Kf3 {[%clk 0:00:03]}  Nf6 {[%clk 0:01:05]} 46. Kg3 {[%clk 0:00:03]}  Nxg4 {[%clk 0:01:06]} 47. Kf3 {[%clk 0:00:04]}  f5 {[%clk 0:01:06]} 48. Kg3 {[%clk 0:00:05]}  f4+ {[%clk 0:01:06]} 49. Kf3 {[%clk 0:00:05]}  Kf5 {[%clk 0:01:07]} 50. Kg2 {[%clk 0:00:05]}  Ne5 {[%clk 0:01:07]} 51. Kf2 {[%clk 0:00:05]}  g5 {[%clk 0:01:08]} 52. Ke2 {[%clk 0:00:05]}  g4 {[%clk 0:01:09]} 53. Kf2 {[%clk 0:00:06]}  Ke4 {[%clk 0:01:09]} 54. Ke2 {[%clk 0:00:06]}  g3 {[%clk 0:01:10]} 55. Kf1 {[%clk 0:00:07]}  f3 {[%clk 0:01:10]} 56. Kg1 {[%clk 0:00:07]}  Ke3 {[%clk 0:01:10]} 57. Kf1 {[%clk 0:00:06]}  Ng6 {[%clk 0:01:09]} 58. Kg1 {[%clk 0:00:07]}  Nf4 {[%clk 0:01:09]} 59. Kf1 {[%clk 0:00:07]}  g2+ {[%clk 0:01:10]} 60. Kg1 {[%clk 0:00:07]}  f2+ {[%clk 0:01:10]} 61. Kh2 {[%clk 0:00:08]}  g1=Q# {[%clk 0:01:10]} 0-1

[Event "January 2 Early 2024"]
[Site "https://www.chess.com"]
[Date "2024.01.02"]
[Round "1"]
[White "Hirneise, Jens"]
[Black "Paravyan, David"]
[Result "0-1"]
[Board "8"]
[TimeControl "180+1"]
[WhiteFideId "24614734"]
[BlackFideId "4194985"]
[WhiteElo "2527"]
[BlackElo "3096"]
[WhiteTeam "GER"]
[BlackTeam "FID"]
[WhiteClock "0:00:51"]
[BlackClock "0:02:10"]

1. d4 {[%clk 0:03:00]}  d5 {[%clk 0:03:00]} 2. Nf3 {[%clk 0:03:00]}  Nf6 {[%clk 0:02:59]} 3. e3 {[%clk 0:02:55]}  c5 {[%clk 0:02:58]} 4. c3 {[%clk 0:02:48]}  e6 {[%clk 0:02:55]} 5. Bd3 {[%clk 0:02:47]}  Nc6 {[%clk 0:02:55]} 6. O-O {[%clk 0:02:47]}  Bd6 {[%clk 0:02:55]} 7. Nbd2 {[%clk 0:02:47]}  O-O {[%clk 0:02:55]} 8. dxc5 {[%clk 0:02:41]}  Bxc5 {[%clk 0:02:56]} 9. e4 {[%clk 0:02:41]}  Qc7 {[%clk 0:02:53]} 10. Qe2 {[%clk 0:02:40]}  h6 {[%clk 0:02:49]} 11. e5 {[%clk 0:02:19]}  Ng4 {[%clk 0:02:48]} 12. Nb3 {[%clk 0:02:13]}  Bb6 {[%clk 0:02:49]} 13. Bf4 {[%clk 0:02:09]}  f6 {[%clk 0:02:49]} 14. Rae1 {[%clk 0:02:06]}  fxe5 {[%clk 0:02:47]} 15. Bxe5 {[%clk 0:01:59]}  Ncxe5 {[%clk 0:02:46]} 16. Nxe5 {[%clk 0:01:59]}  Rxf2 {[%clk 0:02:43]} 17. Rxf2 {[%clk 0:01:55]}  Bxf2+ {[%clk 0:02:42]} 18. Kh1 {[%clk 0:01:55]}  Qxe5 {[%clk 0:02:37]} 19. Qxe5 {[%clk 0:01:52]}  Nxe5 {[%clk 0:02:38]} 20. Rxe5 {[%clk 0:01:52]}  Bd7 {[%clk 0:02:38]} 21. g3 {[%clk 0:01:41]}  Rf8 {[%clk 0:02:35]} 22. Kg2 {[%clk 0:01:38]}  Bb6 {[%clk 0:02:35]} 23. Nd4 {[%clk 0:01:38]}  Bc7 {[%clk 0:02:30]} 24. Re2 {[%clk 0:01:29]}  e5 {[%clk 0:02:30]} 25. Nb3 {[%clk 0:01:22]}  Bg4 {[%clk 0:02:25]} 26. Rd2 {[%clk 0:01:12]}  e4 {[%clk 0:02:22]} 27. Be2 {[%clk 0:01:10]}  e3 {[%clk 0:02:22]} 28. Bxg4 {[%clk 0:01:05]}  exd2 {[%clk 0:02:22]} 29. Be6+ {[%clk 0:01:04]}  Kh8 {[%clk 0:02:17]} 30. Nxd2 {[%clk 0:01:05]}  Bb6 {[%clk 0:02:15]} 31. Nf3 {[%clk 0:01:05]}  Re8 {[%clk 0:02:14]} 32. Bxd5 {[%clk 0:01:02]}  Re2+ {[%clk 0:02:14]} 33. Kh3 {[%clk 0:01:02]}  Rxb2 {[%clk 0:02:15]} 34. Bxb7 {[%clk 0:01:01]}  Rxa2 {[%clk 0:02:15]} 35. Bd5 {[%clk 0:01:01]}  Rc2 {[%clk 0:02:14]} 36. c4 {[%clk 0:01:01]}  a5 {[%clk 0:02:14]} 37. Ne5 {[%clk 0:01:01]}  g5 {[%clk 0:02:11]} 38. Nd7 {[%clk 0:00:51]}  Bd4 {[%clk 0:02:10]} 0-1

[Event "January 2 Early 2024"]
[Site "https://www.chess.com"]
[Date "2024.01.02"]
[Round "1"]
[White "Veiga, Jose Francisco R P Neves"]
[Black "Erigaisi Arjun"]
[Result "1/2-1/2"]
[Board "10"]
[TimeControl "180+1"]
[WhiteFideId "1930087"]
[BlackFideId "35009192"]
[WhiteElo "2527"]
[BlackElo "3085"]
[WhiteTeam "POR"]
[BlackTeam "IND"]
[WhiteClock "0:00:09"]
[BlackClock "0:00:08"]

1. c4 {[%clk 0:03:00]}  g6 {[%clk 0:02:59]} 2. g3 {[%clk 0:02:58]}  f5 {[%clk 0:02:53]} 3. Bg2 {[%clk 0:02:58]}  c5 {[%clk 0:02:52]} 4. Nf3 {[%clk 0:02:58]}  Bg7 {[%clk 0:02:52]} 5. O-O {[%clk 0:02:58]}  Nc6 {[%clk 0:02:51]} 6. Nc3 {[%clk 0:02:57]}  Nf6 {[%clk 0:02:51]} 7. d4 {[%clk 0:02:57]}  cxd4 {[%clk 0:02:51]} 8. Nxd4 {[%clk 0:02:58]}  O-O {[%clk 0:02:51]} 9. Nc2 {[%clk 0:02:54]}  d6 {[%clk 0:02:51]} 10. Bd2 {[%clk 0:02:49]}  Be6 {[%clk 0:02:48]} 11. b3 {[%clk 0:02:49]}  Rc8 {[%clk 0:02:47]} 12. Rc1 {[%clk 0:02:47]}  Kh8 {[%clk 0:02:45]} 13. Ne3 {[%clk 0:02:46]}  a6 {[%clk 0:02:43]} 14. Ncd5 {[%clk 0:02:41]}  Nd7 {[%clk 0:02:40]} 15. Bc3 {[%clk 0:02:40]}  Bxc3 {[%clk 0:02:37]} 16. Rxc3 {[%clk 0:02:41]}  Qa5 {[%clk 0:02:33]} 17. Qa1 {[%clk 0:02:40]}  Kg8 {[%clk 0:02:33]} 18. Nf4 {[%clk 0:02:39]}  Bf7 {[%clk 0:02:33]} 19. Bd5 {[%clk 0:02:30]}  e5 {[%clk 0:02:23]} 20. Bxf7+ {[%clk 0:02:24]}  Rxf7 {[%clk 0:02:24]} 21. Nfd5 {[%clk 0:02:24]}  Nd4 {[%clk 0:02:24]} 22. Re1 {[%clk 0:02:20]}  b5 {[%clk 0:02:16]} 23. cxb5 {[%clk 0:02:00]}  Rxc3 {[%clk 0:02:17]} 24. Qxc3 {[%clk 0:01:53]}  Qxc3 {[%clk 0:02:16]} 25. Nxc3 {[%clk 0:01:53]}  axb5 {[%clk 0:02:17]} 26. Ned5 {[%clk 0:01:49]}  Nc5 {[%clk 0:02:15]} 27. Rd1 {[%clk 0:01:45]}  Rb7 {[%clk 0:02:05]} 28. e3 {[%clk 0:01:45]}  Nf3+ {[%clk 0:02:05]} 29. Kg2 {[%clk 0:01:44]}  e4 {[%clk 0:02:06]} 30. b4 {[%clk 0:01:41]}  Nd3 {[%clk 0:02:06]} 31. g4 {[%clk 0:01:23]}  Kf7 {[%clk 0:01:58]} 32. Kg3 {[%clk 0:01:21]}  Nfe5 {[%clk 0:01:57]} 33. Nf4 {[%clk 0:01:12]}  Nxf4 {[%clk 0:01:49]} 34. exf4 {[%clk 0:01:12]}  Nd3 {[%clk 0:01:49]} 35. f3 {[%clk 0:01:09]}  Rc7 {[%clk 0:01:18]} 36. Nxb5 {[%clk 0:01:08]}  Rc6 {[%clk 0:01:19]} 37. gxf5 {[%clk 0:01:00]}  gxf5 {[%clk 0:01:20]} 38. Nd4 {[%clk 0:00:59]}  Rc3 {[%clk 0:01:00]} 39. Nxf5 {[%clk 0:00:56]}  d5 {[%clk 0:01:01]} 40. b5 {[%clk 0:00:43]}  Ke6 {[%clk 0:00:49]} 41. b6 {[%clk 0:00:43]}  Nc5 {[%clk 0:00:45]} 42. Nd4+ {[%clk 0:00:43]}  Kf6 {[%clk 0:00:43]} 43. Rb1 {[%clk 0:00:42]}  Rd3 {[%clk 0:00:32]} 44. Rb4 {[%clk 0:00:40]}  e3 {[%clk 0:00:29]} 45. Ne2 {[%clk 0:00:38]}  Rd2 {[%clk 0:00:27]} 46. Nc3 {[%clk 0:00:33]}  d4 {[%clk 0:00:22]} 47. b7 {[%clk 0:00:27]}  e2 {[%clk 0:00:12]} 48. Nxe2 {[%clk 0:00:22]}  Nxb7 {[%clk 0:00:13]} 49. Nxd4 {[%clk 0:00:17]}  Nd6 {[%clk 0:00:12]} 50. Kg4 {[%clk 0:00:11]}  Rxh2 {[%clk 0:00:08]} 51. Rb6 {[%clk 0:00:11]}  Ke7 {[%clk 0:00:08]} 52. Nf5+ {[%clk 0:00:11]}  Nxf5 {[%clk 0:00:08]} 53. Kxf5 {[%clk 0:00:11]}  Rh5+ {[%clk 0:00:09]} 54. Ke4 {[%clk 0:00:12]}  Ra5 {[%clk 0:00:10]} 55. Rb2 {[%clk 0:00:09]}  Kf6 {[%clk 0:00:08]} 56. Rb6+ {[%clk 0:00:10]}  Ke7 {[%clk 0:00:08]} 57. Rb2 {[%clk 0:00:10]}  Kf6 {[%clk 0:00:07]} 58. Rb6+ {[%clk 0:00:09]}  Ke7 {[%clk 0:00:08]} 1/2-1/2

[Event "January 2 Early 2024"]
[Site "https://www.chess.com"]
[Date "2024.01.02"]
[Round "1"]
[White "Onufrienko, Vladislav"]
[Black "Martinez Alcantara, Jose Eduardo"]
[Result "0-1"]
[Board "12"]
[TimeControl "180+1"]
[WhiteFideId "13804332"]
[BlackFideId "3805662"]
[WhiteElo "2527"]
[BlackElo "3072"]
[WhiteTeam "KGZ"]
[BlackTeam "PER"]
[WhiteClock "0:02:12"]
[BlackClock "0:01:58"]

1. e4 {[%clk 0:03:00]}  c5 {[%clk 0:02:59]} 2. Nc3 {[%clk 0:03:00]}  d6 {[%clk 0:02:58]} 3. d4 {[%clk 0:03:00]}  cxd4 {[%clk 0:02:59]} 4. Qxd4 {[%clk 0:03:01]}  Nc6 {[%clk 0:03:00]} 5. Qd2 {[%clk 0:03:01]}  e6 {[%clk 0:03:01]} 6. b3 {[%clk 0:03:02]}  d5 {[%clk 0:03:01]} 7. exd5 {[%clk 0:03:01]}  exd5 {[%clk 0:03:02]} 8. Bb2 {[%clk 0:03:01]}  d4 {[%clk 0:02:58]} 9. Qe2+ {[%clk 0:02:55]}  Be6 {[%clk 0:02:45]} 10. O-O-O {[%clk 0:02:53]}  Qg5+ {[%clk 0:02:42]} 11. Kb1 {[%clk 0:02:37]}  dxc3 {[%clk 0:02:38]} 12. Bxc3 {[%clk 0:02:38]}  Nf6 {[%clk 0:02:16]} 13. Nf3 {[%clk 0:02:38]}  Qc5 {[%clk 0:02:14]} 14. Bb2 {[%clk 0:02:38]}  Be7 {[%clk 0:02:14]} 15. h3 {[%clk 0:02:35]}  O-O {[%clk 0:02:13]} 16. g4 {[%clk 0:02:36]}  Rfd8 {[%clk 0:02:10]} 17. g5 {[%clk 0:02:34]}  Nd5 {[%clk 0:02:01]} 18. Qe1 {[%clk 0:02:25]}  Nc3+ {[%clk 0:01:57]} 19. Bxc3 {[%clk 0:02:16]}  Rxd1+ {[%clk 0:01:58]} 20. Qxd1 {[%clk 0:02:12]}  Qxc3 {[%clk 0:01:58]} 0-1

[Event "January 2 Early 2024"]
[Site "https://www.chess.com"]
[Date "2024.01.02"]
[Round "1"]
[White "Sadhwani, Raunak"]
[Black "Kochiev, Ivan"]
[Result "1-0"]
[Board "13"]
[TimeControl "180+1"]
[WhiteFideId "35093487"]
[BlackFideId "2917890"]
[WhiteElo "3068"]
[BlackElo "2526"]
[WhiteTeam "IND"]
[BlackTeam "BUL"]
[WhiteClock "0:00:19"]
[BlackClock "0:00:02"]

1. e3 {[%clk 0:03:00]}  d5 {[%clk 0:02:59]} 2. Nf3 {[%clk 0:03:00]}  Nf6 {[%clk 0:02:59]} 3. Be2 {[%clk 0:03:00]}  Bf5 {[%clk 0:02:58]} 4. O-O {[%clk 0:03:00]}  h6 {[%clk 0:02:59]} 5. b3 {[%clk 0:03:00]}  c5 {[%clk 0:02:59]} 6. Bb2 {[%clk 0:03:01]}  e6 {[%clk 0:02:59]} 7. c4 {[%clk 0:03:02]}  Nc6 {[%clk 0:02:57]} 8. cxd5 {[%clk 0:03:02]}  Nxd5 {[%clk 0:02:57]} 9. Nc3 {[%clk 0:02:59]}  Nf6 {[%clk 0:02:51]} 10. d3 {[%clk 0:02:50]}  Be7 {[%clk 0:02:49]} 11. a3 {[%clk 0:02:50]}  O-O {[%clk 0:02:49]} 12. Qc2 {[%clk 0:02:50]}  Rc8 {[%clk 0:02:49]} 13. Rac1 {[%clk 0:02:38]}  Nd4 {[%clk 0:02:46]} 14. exd4 {[%clk 0:02:27]}  cxd4 {[%clk 0:02:46]} 15. Nxd4 {[%clk 0:02:27]}  Qxd4 {[%clk 0:02:45]} 16. Qd2 {[%clk 0:02:27]}  Qd7 {[%clk 0:02:35]} 17. Rfd1 {[%clk 0:02:26]}  Rfd8 {[%clk 0:02:33]} 18. b4 {[%clk 0:02:26]}  Nd5 {[%clk 0:02:25]} 19. Ne4 {[%clk 0:02:09]}  Bxe4 {[%clk 0:02:07]} 20. dxe4 {[%clk 0:02:10]}  Bg5 {[%clk 0:02:07]} 21. Qd4 {[%clk 0:02:11]}  Bf6 {[%clk 0:01:38]} 22. e5 {[%clk 0:02:07]}  Bg5 {[%clk 0:01:33]} 23. Rxc8 {[%clk 0:01:45]}  Qxc8 {[%clk 0:01:20]} 24. Qc4 {[%clk 0:01:45]}  Qd7 {[%clk 0:01:00]} 25. g3 {[%clk 0:01:41]}  Rc8 {[%clk 0:00:57]} 26. Qb3 {[%clk 0:01:37]}  Qc6 {[%clk 0:00:47]} 27. Bf3 {[%clk 0:01:36]}  Qc2 {[%clk 0:00:40]} 28. Qxc2 {[%clk 0:01:24]}  Rxc2 {[%clk 0:00:41]} 29. Bd4 {[%clk 0:01:10]}  Bc1 {[%clk 0:00:18]} 30. a4 {[%clk 0:00:49]}  b6 {[%clk 0:00:16]} 31. a5 {[%clk 0:00:39]}  bxa5 {[%clk 0:00:15]} 32. bxa5 {[%clk 0:00:38]}  a6 {[%clk 0:00:15]} 33. Bb6 {[%clk 0:00:36]}  Bb2 {[%clk 0:00:04]} 34. Bxd5 {[%clk 0:00:35]}  exd5 {[%clk 0:00:03]} 35. Rxd5 {[%clk 0:00:36]}  g6 {[%clk 0:00:03]} 36. Rd8+ {[%clk 0:00:20]}  Kg7 {[%clk 0:00:03]} 37. Ra8 {[%clk 0:00:21]}  Bxe5 {[%clk 0:00:02]} 38. Rxa6 {[%clk 0:00:22]}  Ra2 {[%clk 0:00:02]} 39. Ra8 {[%clk 0:00:22]}  Bc3 {[%clk 0:00:03]} 40. a6 {[%clk 0:00:22]}  Rb2 {[%clk 0:00:04]} 41. Be3 {[%clk 0:00:20]}  Ra2 {[%clk 0:00:04]} 42. a7 {[%clk 0:00:20]}  Bb4 {[%clk 0:00:02]} 43. Rc8 {[%clk 0:00:19]} 1-0